bitfinex/quotes_SOLUSD_20241216
["timestamp","ask_amount","ask_price","bid_price","bid_amount"]
[1734344586600,20.0,217.34,217.23,23.776884]
[1734344586961,20.0,217.34,217.23,12.58173384]
[1734344587160,29.2024,217.34,217.24,36.35861784]
[1734344588573,29.2024,217.34,217.26,23.776884]
[1734344589668,29.2024,217.34,217.25,23.776884]
[1734344589869,29.2024,217.34,217.24,23.776884]
[1734344590099,29.2024,217.34,217.24,36.35861784]
[1734344590400,29.2024,217.34,217.26,23.776884]
[1734344590987,9.2007,217.38,217.28,23.776884]
[1734344591188,9.2007,217.38,217.28,36.35861784]
[1734344591703,9.2007,217.38,217.28,23.776884]
[1734344591994,9.2007,217.38,217.26,23.776884]
[1734344592601,9.2007,217.38,217.26,36.35861784]
[1734344592795,9.2007,217.38,217.28,23.776884]
[1734344593399,9.2007,217.38,217.28,36.35861784]
[1734344593575,9.2007,217.38,217.28,23.776884]
[1734344594085,9.2007,217.38,217.28,36.35861784]
[1734344594491,9.2007,217.38,217.29,12.58173384]
[1734344594670,9.2007,217.38,217.28,23.776884]
[1734344594671,9.2007,217.38,217.28,36.35861784]
[1734344594879,9.2007,217.38,217.29,12.83271384]
[1734344595075,9.2007,217.38,217.3,23.776884]
[1734344595598,9.2007,217.38,217.21,2.32790034]
[1734344595599,9.2007,217.38,217.22,20.0]
[1734344595780,20.0,217.35,217.23,12.58173384]
[1734344596178,7.2797,217.34,217.2,12.58173384]
[1734344596501,7.2797,217.34,217.16,8.169]
[1734344596502,20.0,217.31,217.18,12.58173384]
[1734344597288,9.2038,217.3,217.18,12.58173384]
[1734344597780,9.2038,217.3,217.19,23.776884]
[1734344598489,9.2038,217.3,217.19,12.58173384]
[1734344598682,9.2038,217.3,217.2,36.35861784]
[1734344598881,9.2038,217.3,217.21,12.58173384]
[1734344599098,9.2038,217.3,217.23,23.776884]
[1734344600403,16.4822,217.34,217.24,12.58173384]
[1734344600608,16.4822,217.34,217.26,23.776884]
[1734344600813,16.4822,217.34,217.27,0.12549]
[1734344601799,16.4822,217.34,217.25,12.58173384]
[1734344601800,16.4822,217.34,217.25,23.776884]
[1734344601993,16.4822,217.34,217.17,2.99259429]
[1734344601994,16.4822,217.34,217.24,36.35861784]
[1734344602181,16.4822,217.34,217.25,12.83271384]
[1734344602583,16.4822,217.34,217.26,23.776884]
[1734344603482,16.4822,217.34,217.25,23.902374]
[1734344604208,16.4822,217.34,217.25,36.48410784]
[1734344604594,16.4822,217.34,217.27,23.776884]
[1734344604797,6.3526,217.34,217.28,12.70722384]
[1734344605103,9.2009,217.37,217.3,23.776884]
[1734344606510,9.2009,217.37,217.29,23.902374]
[1734344606682,9.2009,217.37,217.29,23.776884]
[1734344609232,7.0691,217.39,217.31,36.35861784]
[1734344609413,6.142,217.39,217.34,23.776884]
[1734344610123,0.9271,217.44,217.34,23.776884]
[1734344610124,7.5076,217.44,217.34,23.776884]
[1734344610432,9.1983,217.43,217.32,23.902374]
[1734344610942,9.1983,217.43,217.32,36.48410784]
[1734344611296,9.1983,217.43,217.34,12.58173384]
[1734344611500,9.1983,217.43,217.35,23.902374]
[1734344614330,9.1983,217.43,217.34,12.58173384]
[1734344614331,9.1983,217.43,217.34,23.776884]
[1734344614630,9.1983,217.43,217.33,23.776884]
[1734344615625,9.1983,217.43,217.31,23.776884]
[1734344615810,9.1983,217.43,217.32,0.12549]
[1734344617131,9.1983,217.43,217.31,23.776884]
[1734344617427,9.2,217.39,217.31,23.776884]
[1734344617937,9.2,217.39,217.29,12.58173384]
[1734344617938,9.2,217.39,217.25,12.58173384]
[1734344618128,9.2,217.39,217.24,12.58173384]
[1734344618303,9.2,217.39,217.25,12.58173384]
[1734344618714,20.0,217.36,217.26,0.12549]
[1734344618908,20.0,217.36,217.25,12.58173384]
[1734344618909,6.351,217.35,217.24,12.58173384]
[1734344619205,6.351,217.35,217.25,0.25098]
[1734344619711,15.553,217.35,217.25,0.25098]
[1734344620108,15.553,217.35,217.25,24.027864]
[1734344620504,16.4801,217.35,217.25,0.12549]
[1734344620700,16.4801,217.35,217.24,23.776884]
[1734344621019,16.4801,217.35,217.25,0.12549]
[1734344621727,16.4801,217.35,217.27,0.25098]
[1734344622039,6.351,217.35,217.3,23.776884]
[1734344622502,9.2004,217.38,217.3,23.776884]
[1734344624633,9.2004,217.38,217.3,36.35861784]
[1734344625711,9.2004,217.38,217.3,23.776884]
[1734344626141,9.2004,217.38,217.28,23.776884]
[1734344626814,9.2004,217.38,217.28,36.35861784]
[1734344627014,9.2004,217.38,217.29,0.25098]
[1734344627202,9.2004,217.38,217.31,0.12549]
[1734344627626,9.2004,217.38,217.31,23.902374]
[1734344628621,7.4892,217.4,217.31,23.902374]
[1734344629228,7.4892,217.4,217.31,23.776884]
[1734344629438,9.2,217.39,217.31,23.776884]
[1734344629636,9.2,217.39,217.3,23.776884]
[1734344629853,7.4892,217.4,217.31,12.83271384]
[1734344630022,6.5621,217.4,217.35,23.776884]
[1734344630832,6.5621,217.4,217.36,0.12549]
[1734344631116,7.3677,217.45,217.37,23.776884]
[1734344631917,7.3677,217.45,217.36,24.027864]
[1734344632740,9.1979,217.44,217.36,24.027864]
[1734344633147,9.1979,217.44,217.37,12.58173384]
[1734344633492,9.1964,217.48,217.4,23.776884]
[1734344634348,9.1964,217.48,217.39,23.776884]
[1734344634734,20.0,217.45,217.39,23.776884]
[1734344635044,9.1964,217.48,217.4,0.12549]
[1734344635244,9.1964,217.48,217.4,12.70722384]
[1734344635444,6.4406,217.5,217.42,12.58173384]
[1734344635652,6.4406,217.5,217.43,23.776884]
[1734344638638,9.1958,217.49,217.4,23.902374]
[1734344638839,9.1958,217.49,217.39,23.776884]
[1734344639148,9.1958,217.49,217.4,23.902374]
[1734344639548,9.1958,217.49,217.38,12.58173384]
[1734344640756,9.1958,217.49,217.38,23.902374]
[1734344640948,9.1958,217.49,217.36,23.902374]
[1734344641258,9.1958,217.49,217.37,0.12549]
[1734344641767,9.1958,217.49,217.37,12.70722384]
[1734344642129,9.1958,217.49,217.38,23.776884]
[1734344642330,27.5874,217.49,217.38,23.776884]
[1734344642657,27.5874,217.49,217.37,0.12549]
[1734344642830,20.0,217.46,217.37,0.12549]
[1734344643031,9.1975,217.45,217.33,12.58173384]
[1734344644041,20.0,217.46,217.33,12.58173384]
[1734344644532,20.0,217.46,217.36,12.58173384]
[1734344644938,9.1975,217.45,217.35,0.12549]
[1734344645372,9.1975,217.45,217.32,12.58173384]
[1734344645539,9.1975,217.45,217.31,12.58173384]
[1734344645752,9.1975,217.45,217.32,0.12549]
[1734344645753,27.5925,217.45,217.32,0.12549]
[1734344646264,27.5925,217.45,217.32,12.58173384]
[1734344646447,7.2067,217.44,217.32,23.776884]
[1734344646749,20.0,217.41,217.28,12.58173384]
[1734344646942,9.1996,217.4,217.29,0.25098]
[1734344647144,9.1996,217.4,217.25,8.86754291]
[1734344647145,9.1996,217.4,217.27,12.58173384]
[1734344647450,27.5988,217.4,217.27,12.58173384]
[1734344647664,27.5988,217.4,217.28,0.12549]
[1734344647853,27.5988,217.4,217.27,12.58173384]
[1734344648960,27.5988,217.4,217.28,0.12549]
[1734344649163,27.5988,217.4,217.28,23.776884]
[1734344649380,6.2133,217.35,217.24,12.58173384]
[1734344650354,20.0,217.32,217.24,0.25098]
[1734344650554,20.0,217.31,217.25,23.776884]
[1734344650765,9.2021,217.34,217.24,23.902374]
[1734344650952,9.2021,217.34,217.25,12.58173384]
[1734344651266,7.1404,217.35,217.27,0.12549]
[1734344651453,7.1404,217.35,217.28,23.776884]
[1734344652047,7.1404,217.35,217.27,23.902374]
[1734344653154,9.2007,217.38,217.3,23.776884]
[1734344654252,7.1404,217.4,217.31,0.25098]
[1734344654750,7.1404,217.4,217.32,23.776884]
[1734344656085,7.1404,217.4,217.31,24.027864]
[1734344657259,7.1404,217.4,217.31,23.776884]
[1734344657464,7.1404,217.4,217.24,6.3156]
[1734344657465,9.2,217.39,217.3,23.776884]
[1734344657774,9.2,217.39,217.26,36.35861784]
[1734344658187,9.2,217.39,217.27,0.25098]
[1734344660186,9.2,217.39,217.27,0.12549]
[1734344660486,27.6001,217.39,217.27,0.12549]
[1734344660655,20.0,217.36,217.27,0.12549]
[1734344661181,20.0,217.36,217.22,12.58173384]
[1734344661682,20.0,217.36,217.21,12.58173384]
[1734344661883,20.0,217.36,217.22,0.12549]
[1734344662393,9.2017,217.35,217.22,0.12549]
[1734344662962,9.2017,217.35,217.22,23.902374]
[1734344664658,6.5024,217.31,217.21,23.902374]
[1734344664979,6.5024,217.31,217.21,0.12549]
[1734344665680,7.4295,217.31,217.21,0.12549]
[1734344665997,7.4295,217.31,217.17,12.58173384]
[1734344665998,9.2038,217.3,217.17,12.58173384]
[1734344666361,9.2038,217.3,217.16,12.58173384]
[1734344666784,9.2038,217.3,217.18,0.12549]
[1734344667399,9.2038,217.3,217.18,23.902374]
[1734344667995,20.0,217.27,217.16,23.902374]
[1734344668177,20.0,217.26,217.13,23.776884]
[1734344668712,6.2794,217.25,217.14,0.25098]
[1734344669298,9.2064,217.24,217.14,0.25098]
[1734344669873,9.2064,217.24,217.16,0.25098]
[1734344670078,9.2064,217.24,217.13,24.46751505]
[1734344670079,9.2064,217.24,217.18,23.776884]
[1734344670972,6.2794,217.25,217.19,0.12549]
[1734344671381,6.2794,217.25,217.17,23.902374]
[1734344672005,6.2794,217.25,217.18,0.12549]
[1734344673816,15.4856,217.25,217.15,23.776884]
[1734344674001,15.4856,217.25,217.09,1.6422]
[1734344674322,15.4856,217.25,217.09,14.22393384]
[1734344674323,20.9271,217.22,217.09,14.22393384]
[1734344674495,20.9271,217.22,217.1,12.58173384]
[1734344674893,20.9271,217.22,217.11,0.25098]
[1734344675187,30.1345,217.22,217.11,0.12549]
[1734344675618,30.1345,217.22,217.12,0.12549]
[1734344676484,30.1345,217.22,217.13,0.12549]
[1734344676707,6.2794,217.25,217.15,36.48410784]
[1734344677290,6.2794,217.25,217.15,0.12549]
[1734344677606,6.2794,217.25,217.15,23.902374]
[1734344680221,9.2064,217.24,217.13,23.902374]
[1734344680384,9.2064,217.24,217.14,0.12549]
[1734344681420,9.2064,217.24,217.11,23.776884]
[1734344681617,9.2064,217.24,217.12,0.12549]
[1734344682331,9.2064,217.24,217.12,0.25098]
[1734344683516,26.3689,217.2,217.03,12.58173384]
[1734344684018,26.3689,217.2,217.05,0.25098]
[1734344684327,38.950634,217.2,217.05,0.25098]
[1734344684502,20.0,217.16,217.05,0.25098]
[1734344684705,0.9271,217.15,217.03,12.58173384]
[1734344684905,0.9271,217.15,217.01,12.58173384]
[1734344684906,20.0,217.12,217.01,12.58173384]
[1734344685111,20.0,217.12,217.0,18.84961402]
[1734344685318,20.0,217.12,217.01,12.58173384]
[1734344685739,20.0,217.12,217.02,0.12549]
[1734344686061,9.2119,217.11,217.01,12.58173384]
[1734344686237,9.2119,217.11,217.02,23.776884]
[1734344686532,9.2119,217.11,217.0,6.26788018]
[1734344686710,9.2119,217.11,217.0,18.84961402]
[1734344686909,7.2964,217.15,217.03,12.83271384]
[1734344687129,16.5068,217.15,217.04,12.58173384]
[1734344687512,16.5068,217.15,217.06,0.12549]
[1734344688201,16.5068,217.15,217.06,23.902374]
[1734344688402,7.2964,217.15,217.08,0.12549]
[1734344688643,7.2964,217.15,217.08,36.48410784]
[1734344688817,7.2964,217.15,217.08,23.902374]
[1734344689032,7.2964,217.15,217.08,0.12549]
[1734344689548,7.2964,217.15,217.08,23.902374]
[1734344691724,7.2964,217.15,217.08,23.776884]
[1734344692128,7.2964,217.15,217.06,24.027864]
[1734344696529,7.2964,217.15,217.05,23.776884]
[1734344696937,7.2964,217.15,217.02,12.58173384]
[1734344697141,9.2106,217.14,217.02,12.58173384]
[1734344697456,9.2106,217.14,217.03,0.12549]
[1734344697743,9.2106,217.14,217.02,12.58173384]
[1734344698323,9.2106,217.14,217.03,23.776884]
[1734344699034,9.2106,217.14,217.05,23.776884]
[1734344699562,7.2964,217.15,217.06,0.25098]
[1734344699759,6.3693,217.15,217.08,12.83271384]
[1734344699921,13.508834,217.2,217.1,0.25098]
[1734344699922,6.9543,217.2,217.1,0.25098]
[1734344701088,20.0,217.17,217.1,0.25098]
[1734344701253,20.0,217.16,217.09,23.776884]
[1734344701624,20.0,217.16,217.08,24.027864]
[1734344701940,20.0,217.16,217.08,23.902374]
[1734344701941,29.2097,217.16,217.08,23.902374]
[1734344702526,29.2097,217.16,217.08,23.776884]
[1734344703329,29.2097,217.16,217.03,12.58173384]
[1734344703330,20.0,217.15,217.02,12.58173384]
[1734344704043,20.0,217.15,217.03,0.12549]
[1734344704428,6.1275,217.13,217.02,0.12549]
[1734344704763,6.1275,217.13,217.01,36.60959784]
[1734344706762,0.9271,217.12,217.01,36.60959784]
[1734344706975,9.2119,217.11,217.01,36.60959784]
[1734344707333,9.2119,217.11,217.01,24.027864]
[1734344708256,9.2119,217.11,217.01,36.60959784]
[1734344708616,9.2119,217.11,217.01,24.027864]
[1734344708773,9.2119,217.11,217.01,23.902374]
[1734344709656,9.2119,217.11,217.01,23.776884]
[1734344714787,20.0,217.08,217.0,6.26788018]
[1734344716123,20.0,217.08,217.01,23.776884]
[1734344717288,9.2136,217.07,217.01,23.776884]
[1734344717498,9.2122,217.11,217.01,23.776884]
[1734344717792,9.2122,217.11,217.01,36.35861784]
[1734344718163,9.2122,217.11,217.02,0.12549]
[1734344718365,9.2122,217.11,217.01,23.776884]
[1734344718783,9.2122,217.11,217.02,0.25098]
[1734344720410,9.2122,217.11,217.02,0.12549]
[1734344720719,20.0,217.08,217.0,6.26788018]
[1734344720922,9.2122,217.11,217.0,6.26788018]
[1734344720923,20.0,217.06,217.0,6.26788018]
[1734344721885,9.2144,217.05,217.0,6.26788018]
[1734344723684,16.3221,217.09,217.01,23.776884]
[1734344728398,16.3221,217.09,217.0,6.26788018]
[1734344728931,16.3221,217.09,217.01,0.12549]
[1734344729810,16.3221,217.09,217.01,23.902374]
[1734344733406,16.1199,217.13,217.03,0.12549]
[1734344733407,8.06,217.13,217.03,0.12549]
[1734344733725,6.0866,217.14,217.05,23.902374]
[1734344734111,6.0866,217.14,217.04,24.027864]
[1734344735032,6.0866,217.14,217.02,24.027864]
[1734344735327,14.146,217.14,217.02,24.027864]
[1734344737242,14.146,217.14,217.04,24.027864]
[1734344737529,6.0866,217.14,217.06,24.027864]
[1734344738107,6.0866,217.14,217.05,24.027864]
[1734344738398,6.0866,217.14,217.05,0.25098]
[1734344740200,0.9271,217.16,217.06,32.09382493]
[1734344740711,8.0581,217.18,217.06,32.09382493]
[1734344741534,8.0581,217.18,217.08,24.027864]
[1734344742538,8.0581,217.18,217.04,23.776884]
[1734344742745,8.0581,217.18,217.08,23.776884]
[1734344745945,24.1737,217.18,217.02,1.6122]
[1734344746184,24.1737,217.18,217.04,20.0]
[1734344746311,20.0,217.15,217.01,0.69087893]
[1734344746518,0.9271,217.14,217.0,6.26788018]
[1734344746860,6.3866,217.13,217.0,6.26788018]
[1734344747721,8.06,217.12,217.01,0.12549]
[1734344748661,8.06,217.12,217.01,23.902374]
[1734344750167,8.06,217.12,217.02,0.12549]
[1734344752136,6.3866,217.13,217.07,0.12549]
[1734344752462,14.19237521,217.18,217.08,23.902374]
[1734344752463,6.3866,217.18,217.08,23.902374]
[1734344753364,6.3866,217.18,217.09,0.12549]
[1734344753365,14.4444,217.18,217.09,0.12549]
[1734344758900,6.3866,217.23,217.14,0.25098]
[1734344759461,6.3866,217.23,217.12,24.027864]
[1734344759668,6.3866,217.23,217.14,24.027864]
[1734344759862,0.9271,217.25,217.16,8.06596093]
[1734344760077,13.43142673,217.28,217.1,6.0401]
[1734344760078,6.3866,217.28,217.19,0.12549]
[1734344760679,6.3866,217.28,217.18,0.12549]
[1734344760894,6.3866,217.28,217.18,8.19145093]
[1734344761088,8.9807,217.3,217.21,0.12549]
[1734344761302,8.0536,217.3,217.21,0.12549]
[1734344761774,13.64652673,217.33,217.21,0.12549]
[1734344762161,6.6017,217.33,217.23,0.12549]
[1734344762361,7.04482673,217.36,217.26,0.12549]
[1734344762558,6.1546,217.38,217.26,0.12549]
[1734344763195,6.1546,217.38,217.25,23.776884]
[1734344763196,8.0513,217.36,217.25,23.776884]
[1734344763565,8.0513,217.36,217.24,24.027864]
[1734344763758,8.0513,217.36,217.24,0.25098]
[1734344764288,8.0513,217.36,217.26,24.027864]
[1734344764696,8.0513,217.36,217.26,0.12549]
[1734344765481,8.0513,217.36,217.26,0.25098]
[1734344765690,6.1546,217.38,217.28,0.25098]
[1734344765893,8.0497,217.4,217.29,23.776884]
[1734344766212,8.0497,217.4,217.3,24.027864]
[1734344766689,8.0497,217.4,217.29,0.25098]
[1734344766890,8.0497,217.4,217.31,0.25098]
[1734344767188,8.0497,217.4,217.31,0.12549]
[1734344767583,8.0497,217.4,217.31,0.25098]
[1734344767785,14.5393,217.44,217.31,12.82532688]
[1734344768092,14.5393,217.44,217.33,24.027864]
[1734344769012,14.5393,217.44,217.31,23.776884]
[1734344769308,14.5393,217.44,217.25,0.69013068]
[1734344769309,20.0,217.41,217.25,12.57434688]
[1734344769517,20.0,217.41,217.24,14.14194688]
[1734344770003,20.0,217.41,217.24,1.5676]
[1734344770392,20.0,217.41,217.25,0.25098]
[1734344771211,20.0,217.37,217.25,24.027864]
[1734344772209,20.0,217.33,217.25,24.027864]
[1734344772536,8.0511,217.36,217.25,24.027864]
[1734344772899,8.0511,217.36,217.27,36.60221088]
[1734344773105,8.0511,217.36,217.29,24.027864]
[1734344773723,25.32462114,217.44,217.29,24.027864]
[1734344773936,8.0499,217.4,217.29,24.027864]
[1734344778800,8.0499,217.4,217.29,36.60221088]
[1734344779140,16.37056645,217.44,217.36,0.12549]
[1734344779303,14.5393,217.44,217.36,0.12549]
[1734344780038,8.0469,217.48,217.38,0.12549]
[1734344780201,8.0469,217.48,217.39,23.776884]
[1734344780830,8.045,217.53,217.46,12.57434688]
[1734344781140,16.0925,217.57,217.49,12.57434688]
[1734344781439,16.0925,217.57,217.53,12.57434688]
[1734344781622,6.4507,217.63,217.53,12.57434688]
[1734344781810,6.4507,217.63,217.5,15.34405297]
[1734344781811,2.78397909,217.65,217.56,23.776884]
[1734344782017,8.0396,217.68,217.56,23.776884]
[1734344782702,8.0396,217.68,217.53,12.57434688]
[1734344782902,8.0396,217.68,217.54,23.776884]
[1734344783128,8.0396,217.68,217.55,0.12549]
[1734344783762,2.71198363,217.67,217.55,0.12549]
[1734344783927,2.71198363,217.67,217.54,36.35123088]
[1734344783928,20.0,217.65,217.54,23.776884]
[1734344784148,20.0,217.65,217.52,23.776884]
[1734344784298,20.0,217.65,217.49,12.57434688]
[1734344784631,20.0,217.65,217.5,12.57434688]
[1734344784837,20.0,217.65,217.51,0.12549]
[1734344785131,8.0408,217.64,217.51,0.12549]
[1734344785338,20.0,217.61,217.51,0.12549]
[1734344785540,20.0,217.61,217.52,23.776884]
[1734344785909,20.0,217.61,217.5,36.47672088]
[1734344786098,2.71198363,217.67,217.5,36.47672088]
[1734344786099,20.0,217.63,217.5,36.47672088]
[1734344787527,20.0,217.63,217.5,23.902374]
[1734344788022,8.0415,217.62,217.5,23.902374]
[1734344789260,8.0415,217.62,217.5,36.47672088]
[1734344789464,8.0415,217.62,217.52,12.57434688]
[1734344789626,8.0415,217.62,217.53,23.776884]
[1734344790541,8.0415,217.62,217.51,23.776884]
[1734344791041,8.0415,217.62,217.5,24.027864]
[1734344791237,8.0415,217.62,217.5,36.60221088]
[1734344791433,8.0415,217.62,217.52,36.35123088]
[1734344791644,8.0402,217.66,217.56,23.776884]
[1734344792524,8.0402,217.66,217.56,36.35123088]
[1734344792730,8.0402,217.66,217.56,23.776884]
[1734344793246,8.0402,217.66,217.55,0.12549]
[1734344793624,8.0402,217.66,217.53,23.776884]
[1734344793625,24.1203,217.66,217.53,23.776884]
[1734344793822,24.1203,217.66,217.54,0.12549]
[1734344794063,20.0,217.63,217.53,23.776884]
[1734344794559,20.0,217.63,217.53,36.35123088]
[1734344795156,8.0415,217.62,217.53,36.35123088]
[1734344795376,8.0415,217.62,217.54,0.94036138]
[1734344795586,8.0415,217.62,217.55,23.776884]
[1734344795874,20.0,217.59,217.55,23.776884]
[1734344796176,20.0,217.63,217.55,23.776884]
[1734344796177,8.0401,217.66,217.57,23.776884]
[1734344796357,8.0401,217.66,217.57,36.35123088]
[1734344796676,8.0401,217.66,217.58,0.12549]
[1734344797447,20.0,217.63,217.58,0.12549]
[1734344799975,20.0,217.63,217.57,23.776884]
[1734344800351,8.0401,217.66,217.54,12.57434688]
[1734344800352,20.0,217.65,217.54,23.776884]
[1734344800559,20.0,217.65,217.53,12.57434688]
[1734344801063,20.0,217.65,217.54,0.25098]
[1734344801982,20.0,217.65,217.54,24.027864]
[1734344802153,8.0408,217.64,217.54,24.027864]
[1734344802553,20.0,217.61,217.54,23.776884]
[1734344802875,20.0,217.61,217.52,12.57434688]
[1734344803087,20.0,217.61,217.52,0.12549]
[1734344803258,8.0421,217.61,217.52,0.25098]
[1734344804093,8.0421,217.61,217.51,23.776884]
[1734344805456,8.0421,217.61,217.52,0.12549]
[1734344806071,8.0421,217.61,217.51,0.12549]
[1734344806344,8.0421,217.61,217.51,12.69983688]
[1734344806784,8.0421,217.61,217.52,23.776884]
[1734344808057,8.0421,217.61,217.51,23.902374]
[1734344808358,8.0421,217.61,217.5,12.57434688]
[1734344808359,8.0426,217.59,217.5,23.776884]
[1734344809087,8.0426,217.59,217.51,0.12549]
[1734344811564,8.0426,217.59,217.52,23.776884]
[1734344813485,8.0426,217.59,217.5,23.776884]
[1734344813689,24.1278,217.59,217.44,12.57434688]
[1734344813896,20.0,217.56,217.45,0.12549]
[1734344814403,20.0,217.56,217.45,12.57434688]
[1734344814704,8.0441,217.55,217.45,12.57434688]
[1734344815065,8.0441,217.55,217.47,23.902374]
[1734344815564,8.0441,217.55,217.48,12.57434688]
[1734344815791,8.0441,217.55,217.49,12.57434688]
[1734344816198,8.0441,217.55,217.5,23.776884]
[1734344816699,24.1278,217.59,217.5,23.776884]
[1734344817297,24.1278,217.59,217.49,0.12549]
[1734344818018,8.0426,217.59,217.49,12.69983688]
[1734344818215,8.0426,217.59,217.5,23.776884]
[1734344818788,8.0426,217.59,217.5,36.35123088]
[1734344819036,8.0426,217.59,217.51,12.69983688]
[1734344819202,8.0426,217.59,217.52,23.776884]
[1734344820324,6.5008,217.6,217.54,23.776884]
[1734344821097,6.5008,217.6,217.54,36.35123088]
[1734344821299,6.5008,217.6,217.54,23.776884]
[1734344822799,16.083,217.63,217.54,23.776884]
[1734344822800,23.65896153,217.75,217.55,0.25098]
[1734344823017,6.4014,217.69,217.58,23.776884]
[1734344823624,6.4014,217.69,217.59,0.12549]
[1734344824027,8.0393,217.68,217.59,0.12549]
[1734344824732,8.0393,217.68,217.58,23.776884]
[1734344824903,24.1179,217.68,217.52,12.57434688]
[1734344825338,20.0,217.65,217.54,0.12549]
[1734344825523,20.0,217.65,217.53,12.57434688]
[1734344825838,20.0,217.65,217.5,12.57434688]
[1734344826026,25.0495,217.64,217.51,0.12549]
[1734344826342,25.0495,217.64,217.5,12.57434688]
[1734344826343,20.0,217.61,217.5,12.57434688]
[1734344826534,20.0,217.61,217.49,14.10514688]
[1734344826751,6.3833,217.6,217.47,12.57434688]
[1734344827399,20.0,217.57,217.46,12.57434688]
[1734344827714,8.0437,217.56,217.46,12.57434688]
[1734344827919,8.0437,217.56,217.47,0.12549]
[1734344828302,8.0437,217.56,217.47,12.57434688]
[1734344828725,8.0437,217.56,217.48,12.69983688]
[1734344829132,8.0437,217.56,217.49,23.776884]
[1734344830808,8.0437,217.56,217.48,23.902374]
[1734344831002,8.0437,217.56,217.46,12.57434688]
[1734344831003,8.0437,217.56,217.47,23.902374]
[1734344831426,8.0437,217.56,217.47,0.12549]
[1734344831628,8.0437,217.56,217.45,23.776884]
[1734344831629,15.08852673,217.56,217.45,23.776884]
[1734344831823,15.08852673,217.56,217.4,12.57434688]
[1734344831824,6.086,217.52,217.4,12.57434688]
[1734344832213,6.086,217.52,217.41,12.57434688]
[1734344832535,6.086,217.52,217.42,0.12549]
[1734344832743,13.13082673,217.52,217.42,0.12549]
[1734344832953,8.0456,217.51,217.41,12.57434688]
[1734344833134,8.0456,217.51,217.42,0.12549]
[1734344833649,8.0456,217.51,217.42,23.902374]
[1734344835232,8.0456,217.51,217.41,36.47672088]
[1734344835562,8.0456,217.51,217.41,23.902374]
[1734344836332,8.0456,217.51,217.41,36.47672088]
[1734344836540,8.0456,217.51,217.41,23.902374]
[1734344837623,8.0456,217.51,217.4,12.57434688]
[1734344837624,20.0,217.48,217.36,12.57434688]
[1734344837854,20.0,217.47,217.36,12.57434688]
[1734344838749,8.0474,217.46,217.41,0.12549]
[1734344838951,20.0,217.47,217.41,23.902374]
[1734344839155,20.0,217.47,217.37,0.81540915]
[1734344839156,6.086,217.52,217.44,36.47672088]
[1734344839360,6.086,217.52,217.45,12.57434688]
[1734344839560,6.086,217.52,217.46,23.776884]
[1734344841442,8.0448,217.54,217.46,23.776884]
[1734344841642,7.04482673,217.56,217.47,0.12549]
[1734344841849,6.5368,217.57,217.49,0.12549]
[1734344842067,6.5368,217.57,217.49,12.69983688]
[1734344842258,6.5368,217.57,217.5,23.776884]
[1734344842771,6.5368,217.57,217.48,23.776884]
[1734344843742,6.5368,217.57,217.49,0.12549]
[1734344844763,8.0437,217.56,217.48,23.776884]
[1734344845056,8.0437,217.56,217.46,23.776884]
[1734344846063,8.0437,217.56,217.47,0.12549]
[1734344847242,8.0437,217.56,217.47,23.902374]
[1734344847740,28.0449,217.53,217.45,23.776884]
[1734344848149,28.0449,217.53,217.44,23.902374]
[1734344848663,28.0449,217.53,217.44,23.776884]
[1734344848962,28.0449,217.53,217.45,0.12549]
[1734344849164,28.0449,217.53,217.45,23.902374]
[1734344849751,28.0449,217.53,217.44,0.12549]
[1734344850131,28.0449,217.53,217.45,23.776884]